bitfinex/quotes_SOLUSD_20241125
["timestamp","ask_amount","ask_price","bid_price","bid_amount"]
[1732546640399,127.22475973,242.32,242.28,25.42559577]
[1732546640597,127.22475973,242.32,242.3,0.12549]
[1732546640808,127.22475973,242.32,242.3,0.25098]
[1732546640986,127.22475973,242.31,242.25,4.1278]
[1732546641298,127.22475973,242.3,242.25,4.1278]
[1732546641503,127.22475973,242.3,242.26,25.17461577]
[1732546641806,127.22475973,242.3,242.29,0.12549]
[1732546642099,22.5404,242.5,242.29,0.12549]
[1732546642305,151.09739325,242.49,242.31,0.12549]
[1732546642602,151.09739325,242.49,242.33,0.12549]
[1732546642603,151.2,242.48,242.33,0.12549]
[1732546642795,0.77370855,242.47,242.33,0.12549]
[1732546642993,10.0,242.45,242.33,0.12549]
[1732546643186,4.1249,242.43,242.33,0.12549]
[1732546643384,4.1249,242.43,242.28,20.0]
[1732546643385,0.77371598,242.42,242.32,0.12549]
[1732546643704,0.77371598,242.42,242.3,0.12549]
[1732546644285,0.77371598,242.42,242.29,4.1272]
[1732546644601,0.77371598,242.42,242.32,20.0]
[1732546644788,0.77371598,242.42,242.29,4.1272]
[1732546645187,4.1252,242.41,242.29,4.1272]
[1732546645392,0.77370984,242.4,242.29,24.1272]
[1732546645583,131.2,242.39,242.3,0.12549]
[1732546645791,0.77370527,242.38,242.3,0.12549]
[1732546645990,131.2,242.39,242.3,20.12549]
[1732546646202,131.2,242.38,242.3,20.12549]
[1732546646513,131.2,242.37,242.34,20.0]
[1732546646683,131.2,242.48,242.37,0.12549]
[1732546646885,131.97340027,242.47,242.37,0.25098]
[1732546647109,131.2,242.47,242.37,0.25098]
[1732546647285,0.77357766,242.46,242.37,4.37678]
[1732546648081,131.2,242.45,242.37,24.37678]
[1732546648281,131.2,242.45,242.37,34.69158]
[1732546648812,131.2,242.44,242.4,20.12549]
[1732546649109,34.5798,242.54,242.4,20.12549]
[1732546649110,131.2,242.49,242.4,20.12549]
[1732546649286,131.2,242.48,242.42,0.12549]
[1732546649490,131.2,242.47,242.42,0.12549]
[1732546650012,131.2,242.53,242.47,20.12549]
[1732546650197,131.2,242.56,242.49,0.12549]
[1732546650402,131.2,242.56,242.51,0.12549]
[1732546650904,131.97304148,242.55,242.44,20.0]
[1732546651114,131.2,242.55,242.45,0.12549]
[1732546651415,131.97325968,242.54,242.45,4.24999]
[1732546651609,131.2,242.53,242.46,0.12549]
[1732546651987,131.2,242.53,242.49,0.12549]
[1732546652599,131.2,242.53,242.46,0.12549]
[1732546652910,131.97316986,242.52,242.46,0.12549]
[1732546653116,131.2,242.51,242.36,4.126]
[1732546653298,136.09713688,242.5,242.36,4.126]
[1732546653640,143.9229,242.49,242.34,25.17461577]
[1732546653788,131.97344341,242.48,242.32,25.17461577]
[1732546653988,131.97354509,242.47,242.34,25.17461577]
[1732546654188,131.97349447,242.46,242.36,25.17461577]
[1732546654491,131.2,242.45,242.39,0.12549]
[1732546654800,131.2,242.44,242.42,0.12549]
[1732546655119,12.73,242.56,242.46,0.12549]
[1732546655291,131.97319664,242.55,242.46,4.24979]
[1732546655493,131.2,242.55,242.46,24.24979]
[1732546655691,0.77315211,242.54,242.46,24.24979]
[1732546655912,131.2,242.55,242.46,34.56069]
[1732546656115,131.2,242.54,242.47,0.12549]
[1732546656418,131.2,242.54,242.49,0.12549]
[1732546656715,131.2,242.54,242.52,0.12549]
[1732546656917,131.2,242.61,242.52,0.12549]
[1732546657087,131.2,242.6,242.5,0.12549]
[1732546657292,131.2,242.6,242.51,4.1235]
[1732546657500,131.2,242.6,242.54,20.0]
[1732546657896,131.2,242.59,242.55,0.12549]
[1732546659117,131.2,242.58,242.51,4.1235]
[1732546659310,131.2,242.58,242.47,10.3104]
[1732546659311,131.2,242.57,242.46,25.17461577]
[1732546659512,131.2,242.56,242.55,0.12549]
[1732546659824,131.2,242.55,242.43,10.0]
[1732546659995,131.2,242.54,242.44,9.99993418]
[1732546660195,131.2,242.64,242.49,0.12549]
[1732546660607,131.2,242.64,242.51,20.0]
[1732546660804,131.2,242.63,242.58,20.0]
[1732546661001,131.2,242.63,242.52,0.12549]
[1732546661002,131.2,242.69,242.62,25.17461577]
[1732546661204,131.2,242.69,242.52,10.0]
[1732546661205,131.2,242.68,242.65,0.12549]
[1732546661402,131.2,242.67,242.66,25.30010577]
[1732546661904,131.2,242.74,242.7,0.12549]
[1732546662234,131.2,242.82,242.72,0.12549]
[1732546662397,131.2,242.81,242.79,0.12549]
[1732546662599,131.2,242.8,242.71,20.0]
[1732546662804,131.2,242.79,242.71,20.0]
[1732546663116,131.2,242.79,242.67,20.0]
[1732546663303,131.2,242.79,242.72,0.12549]
[1732546663702,31.8711,242.88,242.72,0.12549]
[1732546663703,131.2,242.78,242.75,20.0]
[1732546663902,131.2,242.78,242.71,20.0]
[1732546663903,131.2,242.78,242.76,0.12549]
[1732546664121,131.2,242.77,242.72,20.0]
[1732546664319,131.2,242.77,242.71,20.0]
[1732546664506,131.97240538,242.76,242.68,4.1206]
[1732546664827,131.97241877,242.75,242.68,4.1206]
[1732546665007,131.97242999,242.74,242.68,4.1206]
[1732546665202,131.2,242.73,242.65,0.12549]
[1732546665407,131.2,242.72,242.68,25.17461577]
[1732546665624,131.2,242.72,242.63,14.425]
[1732546665625,131.2,242.72,242.64,25.17461577]
[1732546665938,131.2,242.71,242.65,25.17461577]
[1732546666106,131.2,242.71,242.64,25.30010577]
[1732546666303,131.2,242.7,242.69,25.30010577]
[1732546666530,131.2,242.87,242.74,0.12549]
[1732546666728,131.97222592,242.86,242.77,0.12549]
[1732546666911,131.2,242.85,242.84,0.12549]
[1732546667235,33.0423,242.97,242.86,0.12549]
[1732546667531,136.2,242.96,242.88,25.30010577]
[1732546667830,136.97179058,242.95,242.76,10.2982]
[1732546668128,136.2,242.94,242.73,25.17461577]
[1732546668340,0.77209441,242.93,242.74,0.12549]
[1732546668710,0.77209441,242.93,242.7,10.3003]
[1732546668929,136.2,242.92,242.72,25.17461577]
[1732546669113,0.77216984,242.91,242.8,0.12549]
[1732546669308,136.2,242.9,242.82,0.12549]
[1732546669502,136.2,242.89,242.87,0.12549]
[1732546669733,136.2,242.88,242.87,20.12549]
[1732546669933,136.2,242.88,242.67,41.48858623]
[1732546669934,136.2,242.88,242.75,45.77151577]
[1732546670112,136.2,242.87,242.84,20.0]
[1732546670421,136.2,242.87,242.85,0.12549]
[1732546670926,136.2,242.86,242.85,0.12549]
[1732546671127,16.3184,242.98,242.85,0.12549]
[1732546671305,0.77198154,242.97,242.85,0.12549]
[1732546671509,0.77198154,242.97,242.87,0.12549]
[1732546672016,0.77198154,242.97,242.89,0.12549]
[1732546672226,12.2028,242.98,242.89,0.12549]
[1732546673307,12.2028,242.98,242.91,0.12549]
[1732546673505,20.0,242.95,242.63,9.99993418]
[1732546673812,10.0,242.93,242.68,45.17454995]
[1732546674117,23.776884,242.91,242.71,10.2999]
[1732546674308,0.77228345,242.9,242.68,4.1206]
[1732546674509,23.776884,242.89,242.7,25.17461577]
[1732546674709,0.77220132,242.88,242.7,25.17461577]
[1732546675034,23.776884,242.87,242.68,4.1206]
[1732546675234,23.776884,242.87,242.48,20.94296608]
[1732546675235,10.0,242.8,242.63,10.3035]
[1732546675412,23.776884,242.77,242.55,4.1228]
[1732546675726,23.776884,242.75,242.55,14.4299]
[1732546675933,23.776884,242.73,242.55,14.4299]
[1732546676107,12.512,242.7,242.55,4.1228]
[1732546676315,23.776884,242.68,242.56,0.12549]
[1732546676613,136.97289178,242.67,242.55,14.4299]
[1732546676832,136.2,242.66,242.55,4.1228]
[1732546677129,0.77281073,242.65,242.55,4.1228]
[1732546677430,0.77281073,242.65,242.53,4.1232]
[1732546677431,136.2,242.64,242.53,4.1232]
[1732546677610,136.97287024,242.63,242.54,0.12549]
[1732546677806,136.2,242.63,242.54,0.12549]
[1732546678927,136.2,242.63,242.54,25.30010577]
[1732546679335,136.2,242.63,242.57,4.24799]
[1732546679832,136.2,242.62,242.57,14.55429]
[1732546680014,136.2,242.62,242.6,20.0]
[1732546680215,136.2,242.61,242.6,20.12549]
[1732546680422,12.512,242.7,242.61,20.0]
[1732546680629,136.97275814,242.69,242.61,20.0]
[1732546680811,136.2,242.69,242.61,20.0]
[1732546681142,0.77274386,242.68,242.57,4.1225]
[1732546681309,0.77274386,242.68,242.43,9.99993418]
[1732546681310,136.2,242.6,242.47,10.3104]
[1732546681514,136.97300649,242.59,242.47,4.1242]
[1732546681837,136.2,242.59,242.47,4.1242]
[1732546682018,136.2,242.59,242.49,25.17461577]
[1732546682215,136.2,242.59,242.48,0.12549]
[1732546682427,136.2,242.58,242.54,0.12549]
[1732546682625,136.2,242.63,242.57,25.17461577]
[1732546682836,136.2,242.62,242.56,20.0]
[1732546683039,136.2,242.61,242.52,20.0]
[1732546683337,136.97289768,242.6,242.47,39.60931577]
[1732546683629,136.2,242.59,242.48,0.12549]
[1732546683837,136.2,242.59,242.52,0.12549]
[1732546684134,136.2,242.58,242.54,0.12549]
[1732546684342,136.2,242.63,242.58,0.12549]
[1732546684507,136.2,242.62,242.58,0.12549]
[1732546684834,136.2,242.62,242.58,20.0]
[1732546685019,136.97290563,242.61,242.48,0.12549]
[1732546685328,136.2,242.6,242.48,0.12549]
[1732546685530,136.2,242.6,242.39,20.6277]
[1732546685531,136.97303256,242.59,242.45,4.1245]
[1732546685739,31.4153,242.58,242.38,25.17461577]
[1732546686032,31.4153,242.58,242.26,2.12236881]
[1732546686033,23.776884,242.53,242.39,4.1255]
[1732546686235,23.776884,242.51,242.39,4.1255]
[1732546686427,0.7734883,242.5,242.39,4.1255]
[1732546686614,136.2,242.49,242.4,25.17461577]
[1732546686815,136.2,242.49,242.44,25.17461577]
[1732546687010,136.97324353,242.48,242.39,4.1255]
[1732546687209,136.2,242.47,242.43,25.17461577]
[1732546687424,136.2,242.47,242.44,4.25019]
[1732546687625,136.2,242.46,242.44,4.1247]
[1732546688044,12.5419,242.57,242.44,4.1247]
[1732546688045,136.2,242.56,242.45,0.12549]
[1732546688212,136.97315351,242.55,242.45,0.12549]
[1732546688416,136.2,242.55,242.45,20.12549]
[1732546688629,0.77321894,242.54,242.45,20.12549]
[1732546689139,0.77321894,242.54,242.4,4.1254]
[1732546689140,136.2,242.53,242.4,4.1254]
[1732546689334,136.97337957,242.52,242.4,4.1254]
[1732546689645,23.776884,242.5,242.37,4.1259]
[1732546689944,0.77357636,242.49,242.38,0.12549]
[1732546690130,0.77357636,242.49,242.37,4.1259]
[1732546690715,23.776884,242.48,242.33,4.1266]
[1732546690918,136.97358544,242.47,242.35,25.17461577]
[1732546691116,136.2,242.47,242.35,25.17461577]
[1732546691325,4.1234,242.52,242.33,4.1266]
[1732546691326,136.2,242.46,242.33,4.1266]
[1732546691544,0.77355371,242.45,242.3,25.17461577]
[1732546691848,136.2,242.46,242.33,0.12549]
[1732546692015,136.2,242.45,242.34,25.17461577]
[1732546692221,136.2,242.44,242.36,0.12549]
[1732546692648,136.2,242.56,242.4,20.12549]
[1732546692823,136.97316852,242.55,242.43,20.12549]
[1732546693033,136.2,242.55,242.43,20.12549]
[1732546693346,0.77314722,242.54,242.45,0.12549]
[1732546693656,136.2,242.53,242.46,4.1243]
[1732546693953,136.2,242.53,242.47,0.12549]
[1732546694350,136.2,242.52,242.5,0.12549]
[1732546694526,136.2,242.56,242.5,0.12549]
[1732546694723,12.5419,242.57,242.49,20.0]
[1732546694724,136.2,242.55,242.49,20.0]
[1732546694942,136.2,242.54,242.5,0.12549]
[1732546695449,136.2,242.54,242.51,4.1235]
[1732546696039,0.77314398,242.53,242.41,25.17461577]
[1732546696361,136.2,242.52,242.47,0.12549]
[1732546696539,136.97314601,242.51,242.44,20.0]
[1732546696739,136.2,242.5,242.44,20.0]
[1732546696968,136.2,242.5,242.45,20.12549]
[1732546697261,136.2,242.57,242.53,0.12549]
[1732546697461,136.2,242.62,242.6,0.12549]
[1732546697761,136.97279705,242.61,242.56,4.1226]
[1732546697961,136.2,242.61,242.57,0.12549]
[1732546698462,136.2,242.61,242.56,14.4293]
[1732546698704,136.2,242.61,242.57,0.12549]
[1732546698847,136.2,242.65,242.6,20.12549]
[1732546699061,136.2,242.65,242.62,0.12549]
[1732546699260,136.2,242.74,242.64,25.30010577]
[1732546699463,136.2,242.73,242.68,14.4222]
[1732546699672,136.2,242.73,242.69,0.12549]
[1732546699946,136.2,242.72,242.69,0.12549]
[1732546700164,136.2,242.72,242.69,20.12549]
[1732546700336,136.2,242.72,242.71,20.12549]
[1732546700535,136.2,242.79,242.72,0.12549]
[1732546700764,33.1778,242.83,242.77,0.12549]
[1732546700765,136.2,242.78,242.77,0.12549]
[1732546701066,136.2,242.82,242.77,0.12549]
[1732546701239,0.7722964,242.81,242.72,0.12549]
[1732546701441,136.2,242.8,242.76,0.12549]
[1732546701640,136.2,242.87,242.75,4.1194]
[1732546701862,136.97221379,242.86,242.7,25.17461577]
[1732546702051,136.2,242.85,242.65,25.17461577]
[1732546702236,136.97239182,242.84,242.74,25.17461577]
[1732546702441,136.2,242.83,242.75,0.12549]
[1732546702982,136.2,242.83,242.8,0.12549]
[1732546703263,136.2,242.87,242.8,0.12549]
[1732546703450,136.2,242.87,242.79,25.17461577]
[1732546703451,136.2,242.87,242.81,0.12549]
[1732546703856,131.2,242.87,242.81,0.12549]
[1732546704065,131.2,242.87,242.8,0.12549]
[1732546704363,131.2,242.87,242.82,0.12549]
[1732546704576,131.2,242.86,242.85,20.12549]
[1732546704746,131.2,242.94,242.86,0.12549]
[1732546704946,131.2,242.99,242.94,0.12549]
[1732546705171,131.2,242.98,242.94,0.12549]
[1732546705377,131.2,242.97,242.93,25.17461577]
[1732546705588,131.2,242.97,242.96,4.1159]
[1732546705749,131.2,242.97,242.96,4.24139]
[1732546705945,131.2,243.08,242.98,20.0]
[1732546706148,131.2,243.07,243.01,0.12549]
[1732546706362,131.2,243.06,243.01,0.12549]
[1732546706549,131.2,243.06,242.96,4.1159]
[1732546706751,131.2,243.05,242.99,20.0]
[1732546706959,0.77148433,243.04,243.0,0.12549]
[1732546707276,131.2,243.05,243.0,0.12549]
[1732546707447,131.2,243.03,243.0,0.12549]
[1732546707647,131.97160657,243.02,242.88,25.17461577]
[1732546707855,136.08678792,243.01,242.85,4.1177]
[1732546708058,131.2,243.0,242.89,0.12549]
[1732546708267,131.2,242.99,242.95,0.12549]
[1732546708455,131.2,243.08,242.95,0.12549]
[1732546708657,146.08557041,243.07,242.85,14.4121]
[1732546708846,146.08557041,243.07,242.85,4.1177]
[1732546708847,10.0,243.01,242.85,4.1177]
[1732546709048,12.1615,242.98,242.73,4.1198]
[1732546709281,131.97192421,243.0,242.65,2.05019842]
[1732546709282,10.0,242.76,242.65,9.99993418]
[1732546709567,131.97213955,242.75,242.61,25.17461577]
[1732546709750,10.0,242.72,242.63,25.17461577]
[1732546709958,131.2,242.75,242.57,25.17461577]
[1732546709959,10.0,242.68,242.57,25.17461577]
[1732546710275,10.0,242.61,242.49,25.17461577]
[1732546710455,131.2,242.6,242.5,10.3092]
[1732546710770,141.2,242.6,242.51,25.17461577]
[1732546710978,131.2,242.6,242.5,10.3092]
[1732546711272,10.0,242.75,242.5,10.3092]
[1732546711273,10.0,242.55,242.5,10.3092]
[1732546711469,131.2,242.54,242.48,4.124]
[1732546711676,131.2,242.53,242.44,14.4365]
[1732546711849,131.2,242.52,242.46,0.12549]
[1732546712059,10.0,242.58,242.52,0.12549]
[1732546712253,10.0,242.58,242.49,25.17461577]
[1732546712460,10.0,242.52,242.44,14.4365]
[1732546712656,131.2,242.51,242.44,4.1247]
[1732546713155,10.0,242.48,242.26,12.04317259]
[1732546713356,10.0,242.6,242.23,16.476759]
[1732546713357,10.0,242.43,242.34,25.17461577]
[1732546713574,131.2,242.42,242.37,0.12549]
[1732546713879,10.0,242.47,242.41,0.12549]
[1732546714049,131.2,242.56,242.41,0.12549]
[1732546714050,10.0,242.52,242.44,0.12549]
[1732546714250,10.0,242.47,242.44,0.12549]
[1732546714468,131.2,242.5,242.44,0.12549]
[1732546714678,131.2,242.49,242.48,0.12549]
[1732546714881,131.2,242.49,242.31,20.10196043]
[1732546714882,131.2,242.48,242.39,25.17461577]
[1732546715185,10.0,242.55,242.46,0.12549]
[1732546715475,10.0,242.49,242.44,0.12549]
[1732546715652,10.0,242.48,242.45,4.1245]
[1732546715858,10.0,242.45,242.4,4.1254]
[1732546716058,10.0,242.43,242.35,4.1262]
[1732546716271,10.0,242.44,242.36,25.17461577]
[1732546716461,10.0,242.44,242.35,4.1262]
[1732546716462,131.2,242.43,242.35,4.1262]
[1732546716665,131.2,242.43,242.36,0.12549]
[1732546716861,144.08527457,242.42,242.3,25.17461577]
[1732546717073,10.0,242.34,242.28,25.17461577]
[1732546717271,12.1118,242.42,242.26,25.17461577]
[1732546717272,10.0,242.33,242.26,25.17461577]
[1732546717675,10.0,242.37,242.27,4.1276]
[1732546717886,0.77376471,242.36,242.28,25.30010577]
[1732546718173,131.2,242.4,242.3,25.17461577]
[1732546718348,131.2,242.39,242.32,25.17461577]
[1732546718556,141.2,242.39,242.33,0.12549]
[1732546718751,10.0,242.32,242.16,9.99993418]
[1732546718977,131.2,242.31,242.25,25.17461577]
[1732546719167,131.2,242.3,242.25,25.17461577]
[1732546719479,10.0,242.28,242.27,25.17461577]
[1732546719676,10.0,242.35,242.3,0.12549]
[1732546719879,10.0,242.32,242.3,25.30010577]
[1732546720054,131.2,242.39,242.3,25.30010577]
[1732546720055,10.0,242.37,242.3,0.12549]
[1732546720379,10.0,242.34,242.2,9.99993418]
[1732546720571,10.0,242.31,242.27,25.17461577]
[1732546720876,10.0,242.31,242.28,0.12549]
[1732546721079,10.0,242.38,242.3,0.12549]
[1732546721268,131.2,242.37,242.3,0.12549]
[1732546721579,141.2,242.37,242.3,0.12549]
[1732546721760,141.2,242.37,242.32,0.12549]
[1732546721761,10.0,242.35,242.32,0.12549]
[1732546722351,12.1118,242.42,242.25,25.17461577]
[1732546722352,10.0,242.31,242.25,25.17461577]
[1732546722559,131.2,242.3,242.27,29.30211577]
[1732546722760,131.2,242.29,242.23,25.17461577]
[1732546723057,10.0,242.27,242.23,25.17461577]
[1732546723265,141.2,242.32,242.23,25.17461577]
[1732546723776,10.0,242.27,242.26,0.12549]
[1732546723978,131.2,242.31,242.26,0.12549]
[1732546724169,10.0,242.27,242.26,0.12549]
[1732546724479,10.0,242.28,242.26,0.12549]
[1732546724657,131.2,242.31,242.28,0.12549]
[1732546724864,131.2,242.3,242.27,25.17461577]
[1732546725265,10.0,242.24,242.23,25.17461577]
[1732546725569,10.0,242.24,242.23,25.30010577]
[1732546725765,131.2,242.29,242.15,14.4536]
[1732546725766,10.0,242.25,242.24,0.12549]
[1732546726358,10.0,242.25,242.23,4.1281]
[1732546727080,131.2,242.29,242.24,25.17461577]
[1732546727384,10.0,242.25,242.24,25.17461577]
[1732546727883,10.0,242.25,242.13,10.3246]
[1732546728084,131.2,242.24,242.18,25.17461577]
[1732546728273,131.2,242.26,242.2,25.17461577]
[1732546728659,10.0,242.41,242.13,10.3246]
[1732546728660,10.0,242.19,242.18,25.17461577]
[1732546728995,10.0,242.18,242.13,25.17461577]
[1732546729358,10.0,242.16,242.13,25.17461577]
[1732546729589,10.0,242.14,242.13,25.17461577]
[1732546729885,10.0,242.14,242.13,29.30461577]
[1732546730057,131.2,242.2,242.13,29.30461577]
[1732546730266,10.0,242.17,242.13,4.13]
[1732546730466,10.0,242.2,242.16,25.17461577]
[1732546730665,10.0,242.24,242.13,14.455]
[1732546730886,141.2,242.23,242.13,14.455]
[1732546731059,131.2,242.23,242.13,14.455]
[1732546731258,10.0,242.24,242.13,24.45493418]
[1732546731975,10.0,242.24,242.23,25.17461577]
[1732546732483,10.0,242.26,242.25,20.0]
[1732546732685,10.0,242.22,242.15,9.99993418]
[1732546732864,10.0,242.26,242.18,20.0]
[1732546733264,10.0,242.26,242.24,25.17461577]
[1732546733664,10.0,242.26,242.22,25.17461577]
[1732546733865,10.0,242.26,242.2,25.17461577]
[1732546734062,10.0,242.26,242.25,25.17461577]
[1732546735081,10.0,242.27,242.25,25.17461577]
[1732546735283,10.0,242.33,242.26,25.17461577]
[1732546735586,131.2,242.32,242.26,25.17461577]
[1732546735897,131.2,242.32,242.28,25.17461577]
[1732546736216,131.2,242.32,242.27,4.1276]
[1732546736217,10.0,242.34,242.3,25.17461577]
[1732546736402,10.0,242.33,242.32,20.0]
[1732546737083,10.0,242.33,242.3,20.0]
[1732546737398,10.0,242.33,242.32,20.0]
[1732546737688,10.0,242.32,242.31,20.0]
[1732546737882,10.0,242.32,242.31,24.1269]
[1732546738090,10.0,242.3,242.28,25.17461577]
[1732546738289,10.0,242.36,242.28,25.41590943]
[1732546738598,9.8746,242.33,242.3,20.0]
[1732546738787,9.8746,242.31,242.3,20.0]
[1732546739089,9.8746,242.35,242.29,20.0]
[1732546739297,9.8746,242.35,242.3,20.0]
[1732546739974,9.8746,242.32,242.31,24.1269]
[1732546740173,9.8746,242.32,242.31,4.1269]
[1732546740375,9.8746,242.32,242.27,4.1276]
[1732546740605,9.8746,242.35,242.27,4.1276]
[1732546740908,131.2,242.36,242.14,4.1298]
[1732546740909,9.8746,242.18,242.14,4.1298]
[1732546741067,9.8746,242.2,242.16,15.64380824]
[1732546741271,10.0,242.35,242.18,15.64380824]
[1732546741272,9.8746,242.21,242.18,15.64380824]
[1732546741498,9.8746,242.19,242.15,15.64380824]
[1732546741680,9.8746,242.26,242.17,15.64380824]
[1732546741875,131.2,242.25,242.17,15.64380824]
[1732546742079,131.2,242.25,242.19,15.64380824]
[1732546742294,131.2,242.25,242.22,15.64380824]
[1732546742469,9.8746,242.26,242.22,15.64380824]
[1732546742686,9.8746,242.26,242.23,15.64380824]
[1732546742886,9.8746,242.26,242.25,15.64380824]
[1732546743195,9.8746,242.34,242.28,20.0]
[1732546743395,9.8746,242.36,242.35,20.0]
[1732546743596,9.8746,242.38,242.35,15.64380824]
[1732546743802,9.8746,242.36,242.33,15.64380824]
[1732546744005,9.8746,242.36,242.35,24.1262]
[1732546744176,9.8746,242.39,242.35,39.77000824]
[1732546744497,9.8746,242.36,242.35,4.1262]
[1732546744689,9.8746,242.32,242.3,20.0]
[1732546744889,9.8746,242.32,242.19,13.0666]
[1732546744890,9.8746,242.27,242.25,4.1279]
[1732546745700,9.8746,242.29,242.25,4.1279]
[1732546745879,9.8746,242.27,242.25,4.1279]
[1732546746081,9.8746,242.26,242.25,4.1279]
[1732546747383,9.8746,242.2,242.18,15.64380824]
[1732546747588,9.8746,242.24,242.18,15.64380824]
[1732546747905,9.7492,242.25,242.23,15.64380824]
[1732546748204,9.7492,242.29,242.24,15.64380824]
[1732546748503,131.2,242.32,242.28,15.64380824]
[1732546748801,9.7492,242.34,242.29,15.64380824]
[1732546748999,12.2867,242.42,242.36,20.0]
[1732546749000,9.7492,242.4,242.36,20.0]
[1732546749208,10.0,242.55,242.36,20.0]
[1732546749209,9.7492,242.44,242.4,20.0]
[1732546749501,9.7492,242.47,242.43,15.64380824]
[1732546749713,9.7492,242.43,242.26,20.21623766]
[1732546750009,9.7492,242.32,242.3,24.1271]
[1732546750179,9.7492,242.3,242.25,4.1279]
[1732546750382,9.7492,242.26,242.25,4.1279]
[1732546751480,9.7492,242.21,242.2,4.1288]
[1732546751810,9.7492,242.23,242.2,4.1288]
[1732546751985,131.2,242.24,242.21,15.64380824]
[1732546752184,9.7492,242.23,242.21,15.64380824]
[1732546752382,9.7492,242.25,242.21,15.64380824]
[1732546752608,9.7492,242.24,242.21,15.64380824]
[1732546752908,9.7492,242.24,242.23,15.64380824]
[1732546753113,9.7492,242.3,242.23,15.64380824]
[1732546753301,9.7492,242.26,242.25,35.64380824]
[1732546753601,9.7492,242.3,242.25,35.64380824]
[1732546753805,9.7492,242.26,242.25,35.64380824]
[1732546754185,9.7492,242.26,242.25,24.1279]
[1732546754387,9.7492,242.26,242.25,4.1279]
[1732546754585,9.7492,242.24,242.23,4.1282]
[1732546754888,9.7492,242.19,242.18,4.1291]
[1732546755207,9.7492,242.19,242.17,4.1291]
[1732546755705,9.7492,242.19,242.18,15.64380824]
[1732546756402,9.7492,242.19,242.17,4.1291]
[1732546756807,9.7492,242.19,242.17,19.77290824]
[1732546757381,9.7492,242.19,242.17,4.1291]
[1732546757621,9.7492,242.23,242.18,15.64380824]
[1732546757818,9.7492,242.22,242.21,15.64380824]
[1732546757989,9.7492,242.21,242.2,15.64380824]
[1732546758189,9.7492,242.21,242.2,19.77260824]
[1732546758489,9.7492,242.23,242.2,19.77260824]
[1732546758791,9.7492,242.23,242.22,15.64380824]
[1732546759917,9.7492,242.23,242.2,4.1288]
[1732546760206,9.7492,242.21,242.11,9.99993418]
[1732546760412,9.7492,242.21,242.11,10.25073418]
[1732546760612,9.7492,242.21,242.2,15.64380824]
[1732546761826,9.7492,242.17,242.13,20.0]
[1732546761998,9.7492,242.17,242.16,15.64380824]
[1732546762194,9.7492,242.17,242.16,19.77330824]
[1732546762413,9.7492,242.21,242.19,20.0]
[1732546762706,9.7492,242.21,242.2,15.64380824]
[1732546763113,131.2,242.29,242.23,20.0]
[1732546763114,9.7492,242.25,242.23,20.0]
[1732546763318,9.7492,242.25,242.23,35.64380824]
[1732546763616,9.7492,242.25,242.23,20.0]
[1732546763818,9.7492,242.23,242.22,15.64380824]
[1732546764118,9.7492,242.23,242.21,15.64380824]
[1732546764412,9.7492,242.23,242.22,19.77936839]
[1732546767423,9.7492,242.23,242.22,4.1284]
[1732546767792,9.7492,242.19,242.18,19.78006839]